Cogmind - Beta 10.2 @@@ ROGUE MODE // 2021.07.21 @ 13:22:52 Player: vera Result: Destroyed by G-34 Mercenary with Small Laser Performance ------------- Evolutions (0) 0 Regions Visited (1) 200 Robots Destroyed (20) 100 Value Destroyed (419) 419 Prototype IDs (0) 0 Alien Tech Used (0) 0 Bonus (0) 0 TOTAL SCORE: 719 Bonus ------- None Cogmind --------- Core Integrity 0/250 Matter 300/300 Energy 100/100 System Corruption 0% Temperature Cool (6) Movement Core (300) Ox5 Location -10/Materials Parts ------- > --- POWER (1) -------- (None) > --- PROPULSION (2) --- (None) > --- UTILITY (2) ------ Large Storage Unit Targeting Computer > --- WEAPON (2) ------- (None) > --- INVENTORY (10) --- Light Ion Engine Aluminum Leg Aluminum Leg Flight Unit Peak State ------------ > --- POWER ------------ Ion Engine > --- PROPULSION ------- Aluminum Leg Aluminum Leg > --- UTILITY ---------- Small Storage Unit Targeting Computer > --- WEAPON ----------- EM Pulse Gun EM Pulse Gun > --- INVENTORY -------- Ion Engine Light Assault Rifle [Rating: 7] Favorites ----------- Power Ion Engine Engine Ion Engine Propulsion Aluminum Leg Leg Aluminum Leg Flight Unit Flight Unit Utility Targeting Computer Storage Small Storage Unit Processor Targeting Computer Weapon EM Pulse Gun Energy Gun EM Pulse Gun Energy Cannon Beam Cannon Ballistic Gun Light Assault Rifle Build | -11 -10 ------- Run | Scr Mat Slots Evolved . | . . Power . | . . Propulsion . | . . Utility . | . . Weapon . | . . Parts Attached 20 | 7 13 Power 2 | 1 1 Engine 2 | 1 1 Core . | . . Reactor . | . . Propulsion 7 | 2 5 Treads . | . . Leg 4 | 2 2 Wheel . | . . Hover . | . . Flight 3 | . 3 Utility 3 | 1 2 Device . | . . Storage 2 | 1 1 Processor 1 | . 1 Hackware . | . . Protection . | . . Artifact . | . . Weapon 8 | 3 5 Energy Gun 4 | 2 2 Energy Cannon 1 | . 1 Ballistic Gun 3 | 1 2 Ballistic Cannon . | . . Launcher . | . . Special Weapon . | . . Impact Weapon . | . . Slashing Weapon . | . . Piercing Weapon . | . . Special Melee Weapon . | . . Unidentified Prototypes . | . . Parts Lost 11 | . 11 Power 2 | . 2 Propulsion 4 | . 4 Utility . | . . Weapon 5 | . 5 Highest Loss Streak 6 | . 6 Average Slot Usage (%) 91 | . 91 Engine 12 | . 12 Leg 20 | . 20 Flight 4 | . 4 Storage 14 | . 14 Processor 13 | . 13 Energy Gun 9 | . 9 Energy Cannon 8 | . 8 Ballistic Gun 6 | . 6 Naked Turns . | . . Heaviest Build 26 | 13 26 Greatest Support 20 | 20 20 Greatest Overweight (x) 5 | 2 5 Average Overweight (x) . | . . Largest Inventory Capacity 10 | 6 10 Average Capacity 7 | 4 7 Most Carried 6 | 2 6 Average Carried 4 | 1 4 Final Capacity 10 | 6 10 Final Carried 4 | 2 4 Class Distribution -------------------- 100% | Mutant Dominant Class ---------------- Mutant | -10/Materials Resources | -11 -10 ----------- Run | Scr Mat Matter Collected 409 | 270 139 Remotely . | . . Salvage Created 573 | . 573 Parts 42 | . 42 Haulers Intercepted . | . . Recyclers Shooed 1 | . 1 Parts Field Recycled . | . . Retrieved Matter . | . . Parts Self-Destructed . | . . Prevented . | . . Kills | -11 -10 ------- Run | Scr Mat Combat Hostiles Destroyed 17 | . 17 Guns 11 | . 11 Cannons 6 | . 6 Classes Destroyed 5 | . 5 Builder 1 | . 1 Operator 1 | . 1 Watcher 1 | . 1 Swarmer 9 | . 9 Grunt 8 | . 8 Best Kill Streak 3 | . 3 Combat Bots Only 3 | . 3 Max Kills in Single Turn 2 | . 2 Gunslinging 1 | . 1 Exploded . | . . Melee . | . . Uniques/NPCs Destroyed . | . . Combat | -11 -10 -------- Run | Scr Mat Damage Taken 1134 | . 1134 Core 256 | . 256 Absorbed by Shields . | . . Core Remaining (%) 100 | 100 . Volleys Fired 52 | . 52 Largest 2 | . 2 Hottest 100 | . 100 Shots Fired 98 | . 98 Gun 69 | . 69 Cannon 29 | . 29 Launcher . | . . Special . | . . Kinetic 34 | . 34 Thermal 29 | . 29 Explosive . | . . Electromagnetic 35 | . 35 Robot Hit Streak 9 | . 9 Robot Miss Streak 5 | . 5 Penetration Max . | . . Secondary Targets 1 | . 1 Max Gunslinging Chain 1 | . 1 Shots Hit Robots 60 | . 60 Core Hits 28 | . 28 Critical Hits 1 | . 1 Critical Kills . | . . Critical Parts Destroyed 1 | . 1 Melee Attacks . | . . Impact . | . . Slashing . | . . Piercing . | . . Sneak Attacks . | . . Combat Hostiles . | . . Follow-up Attacks . | . . Damage Inflicted 701 | . 701 Guns 437 | . 437 Cannons 262 | . 262 Explosions . | . . Melee . | . . Ramming 2 | . 2 Kinetic 149 | . 149 Thermal 262 | . 262 Explosive . | . . Electromagnetic 288 | . 288 Impact . | . . Slashing . | . . Piercing . | . . Highest Corruption . | . . Average Corruption . | . . Corruption Purged . | . . Overload Shots . | . . Overflow Damage . | . . Projectiles . | . . Explosions . | . . Melee . | . . Knockbacks . | . . Impact . | . . Kinetic . | . . Secondary . | . . Self-Inflicted Damage 1 | . 1 Shots . | . . Rammed 1 | . 1 Targets Rammed 2 | . 2 Kicked 1 | . 1 Crushed . | . . Highest Temperature 273 | . 273 Average Temperature 107 | . 107 Received Heat Transfer 354 | . 354 Siege Activations . | . . Robots Corrupted . | . . Combat Hostiles . | . . Parts Fried 1 | . 1 Impact Corruptions . | . . Robots Melted . | . . Combat Hostiles . | . . Parts Melted . | . . Heat Transferred 555 | . 555 Parts Sabotaged . | . . Parts Stolen . | . . Parts Stripped . | . . Power Chain Reactions . | . . Missiles Intercepted . | . . Alert | -11 -10 ------- Run | Scr Mat Peak Influence 397 | . 397 Initial . | . . Average 188 | . 209 Maximum Alert Level 1 | . 1 Low Security (%) 39 | 100 32 Level 1 60 | . 67 Level 2 . | . . Level 3 . | . . Level 4 . | . . Level 5 . | . . High Security . | . . Max Security . | . . Squads Dispatched 4 | . 4 Investigation 1 | . 1 Extermination . | . . Reinforcement 3 | . 3 Assault . | . . Garrison . | . . Intercept . | . . Construction Impeded . | . . Haulers Reinforced . | . . Stealth | -11 -10 --------- Run | Scr Mat Distress Signals 1 | . 1 Communications Jammed . | . . Distress Signals . | . . Times Spotted 26 | . 26 Peak Tracking Total 4 | . 4 Tactical Retreats 3 | . 3 Traps | -11 -10 ------- Run | Scr Mat Traps Triggered . | . . Indirectly . | . . Trap Hack Attempts . | . . Triggered . | . . Disarmed . | . . Reprogrammed . | . . Reused . | . . Traps Extracted . | . . Installed . | . . Triggered . | . . Machines | -11 -10 ---------- Run | Scr Mat Machines Disabled 2 | . 2 Max in Single Turn 1 | . 1 Machines Sabotaged . | . . Garrisons Compromised . | . . Overloaded Fab Kills . | . . Fab Network Shutdowns . | . . Hacking | -11 -10 --------- Run | Scr Mat Machines Accessed 2 | . 2 Terminals 2 | . 2 Fabricators . | . . Repair Stations . | . . Recycling Units . | . . Scanalyzers . | . . Garrison Access . | . . Total Hacks 10 | . 10 Successful 4 | . 4 Failed 6 | . 6 Catastrophic . | . . Database Lockouts . | . . Manual . | . . Terminals 10 | . 10 Fabricators . | . . Repair Stations . | . . Recycling Units . | . . Scanalyzers . | . . Garrison Access . | . . Terminal Hacks 4 | . 4 Robot Analysis 1 | . 1 Terminal Index 1 | . 1 Alert Level 1 | . 1 Reinforcement Status 1 | . 1 Fabricator Hacks . | . . Repair Station Hacks . | . . Recycling Unit Hacks . | . . Scanalyzer . | . . Garrison Access Hacks . | . . Unauthorized Hacks . | . . Terminals . | . . Fabricators . | . . Repair Stations . | . . Recycling Units . | . . Scanalyzers . | . . Garrison Access . | . . Data Cores Recovered . | . . Used . | . . Hacking Detections 2 | . 2 Full Trace Events 1 | . 1 Feedback Events . | . . Feedback Blocked . | . . Robot Schematics Acquired . | . . Robots Built . | . . Matter . | . . Time . | . . Total Robot Build Rating . | . . Part Schematics Acquired . | . . Parts Built . | . . Matter . | . . Time . | . . Total Part Build Rating . | . . Parts Repaired . | . . Time . | . . Parts Recycled . | . . Recycled Matter . | . . Retrieved Matter . | . . Retrieved Components . | . . Parts Scanalyzed . | . . Part Schematics Acquired . | . . Parts Damaged . | . . Bothacking | -11 -10 ------------ Run | Scr Mat Used RIF Installer . | . . Robots Hacked . | . . Non-combat . | . . Combat . | . . Robot Hacks Applied . | . . Relay Couplers Released . | . . Robots Rewired . | . . Allies Hacked . | . . Hacks Repelled . | . . Allies | -11 -10 -------- Run | Scr Mat Total Allies . | . . Largest Group . | . . Highest-Rated Group . | . . Highest-Rated Ally . | . . Total Orders . | . . Ally Attacks . | . . Total Damage . | . . Kills . | . . Allies Corrupted . | . . Allies Melted . | . . Intel | -11 -10 ------- Run | Scr Mat Robot Analysis Total 1 | . 1 Derelict Logs Recovered . | . . Drone Launches . | . . Drone Recoveries . | . . Exploration | -11 -10 ------------- Run | Scr Mat Turns Passed 646 | 64 582 Spaces Moved 300 | 44 256 Core 12 | 9 3 Treads . | . . Legs 254 | 35 219 Wheels . | . . Hover . | . . Flight 34 | . 34 Fastest Speed 50 | 50 120 Average Speed 136 | 120 139 Slowest Speed 440 | 150 440 Overloaded Moves . | . . Propulsion Burnouts . | . . Robots Hopped . | . . Cave-ins Triggered . | . . Exploration Rate (%) 22 | 4 41 Regions Visited 1 Branch Regions . Pre-discovered Areas . | . . Known Exits Taken . | . . Unknown Exits Taken 1 | 1 . Scrap Searched . | . . Spaces Dug . | . . Terrain Destroyed . | . . Melee . | . . Projectile . | . . AOE . | . . Terrain Rammed . | . . Walls Destroyed . | . . Machines Disabled . | . . Actions | -11 -10 --------- Run | Scr Mat Total 441 | 52 389 Wait 57 | . 57 Move 299 | 43 256 Hop . | . . Pick Up 6 | 1 5 Fast Attach 12 | 7 5 Attach 5 | . 5 Detach 2 | 1 1 Swap 3 | . 3 Drop 3 | . 3 Fire 52 | . 52 Melee . | . . Ram . | . . Kick 2 | . 2 Crush . | . . Escape Stasis . | . . Rewire . | . . Trap . | . . Miscellaneous . | . . Route ------- -11/Scrapyard -10/Materials (discovered 1 exit: [*Mat]) History --------- Turn | Location | Event 11 | -11/Scrapyard | Discovered new exit (range 16) 65 | -11/Scrapyard | Entered Materials 311 | -10/Materials | Build established: Mutant 362 | -10/Materials | Discovered new exit (range 8) 505 | -10/Materials | Lost 5 parts (1p1n3w) 600 | -10/Materials | Core integrity fell below 50% 620 | -10/Materials | Core integrity fell below 20% 626 | -10/Materials | Lost 6 parts (1p3n2w) 647 | -10/Materials | Destroyed by G-34 Mercenary with Small Laser Last Messages --------------- 00508_ S-10 Pest destroyed. 00511_ Acquired Flight Unit. 00515_ Acquired 20 matter. 00517_ Acquired 7 matter. 00533_ Acquired 15 matter. 00559_ Acquired 3 matter. 00563_ Acquired Flight Unit. 00574_ Acquired 8 matter. 00577_ Lgt. Assault Rifle destroyed. 00578_ Flight Unit destroyed. 00578_ G-34 Mercenary destroyed. 00581_ Lgt. Assault Rifle destroyed. 00583_ Flight Unit destroyed. 00584_ Acquired 2 matter. 00593_ Ion Engine destroyed. 00595_ Flight Unit destroyed. 00638_ R-06 Scavenger collects Aluminum Leg. 00641_ R-06 Scavenger collects Lgt. Assault Rifle. 00645_ R-06 Scavenger collects Flight Unit. 00647_ K-01 Serf collects debris. Map ----- +----------------------------------------------------+ | | | | | | | | | | | | | | | | | | | | | | | | | | | ????????????????????????????????????????? | | ????????????????????????????????????????? | | ????????????????????????????????????????? | | ????????????????????????????????????????? | | ?????????????????????###########????????? | | ?????????????######### ! #????????? | | ?????????????? # #????????? | | ???????????????< # """ """ #????????? | | ???????????????? # """ """ #????????? | | ????????########## # """ """ #????????? | | ????????# # # #????????? | | ????????#! r# # =|= % #????????? | | ????????# """ @k + ! #????????? | | ????????# """"g%# ########+##??####### | | ????????# """"*%# #??????#[#???# | | ????????# """"" # ^#??????# #???# | | ????????# """ # #??????# ##### | | ????????# # #??????#* +% | | ????????# # #??????# ##### | | ????????###+###### #??????# #???# | | ??????????# #??????# #???# ! | | ??????????# +??????# #???# | | ??????????# #??????# #########/# | | ??????????##+##### #?????# | | ??????????# # #?????# | | ??????????# """ # #?????# | | ??????????# """ + #?????# ########## | | ??????????# """ # #?????# ?????????? | | ??????????# # #?????? ?????????? | | ??????????#= ?# #?????? ?????????? | | ????????########## #?????? T ?????????? | | ????????# # #?????? ?????????? | | ????????# """ # #?????? ? ?????????? | | ????????# """ + #??????????????????? | | ????????# """ # #??????????????????? | | ????????# # #??????????????????? | | ????????# """ #*= #??????????????????? | +----------------------------------------------------+ Best States ------------- Heat Dissipation 25 Energy Generation 10 Energy Capacity 250 Matter Stores 300 Matter Capacity 300 Sight Range 16 Terrain Scan Density 10 Evasion (%) 40 Targeting Accuracy 5 Item Schematics ----------------- None Robot Schematics ------------------ None Fabricated ------------ Nothing Alien Tech Used ----------------- None Achievements -------------- None Challenges ------------ None Game ------ Seed TeslaSingularityCoupler Manual? 0 Play Time 00:06:11 Cumulative 9.0 hours Start 2021.07.21 @ 13:16:50 End 2021.07.21 @ 13:22:52 Sessions 1 Manual Loads 0 Difficulty Rogue Special Mode None Game No. 24 Rogue 24 Adventurer 0 Explorer 0 Win Type - Total 0 Types 0/0/0/0/0/0/0/0/0 Lore% 16 Gallery% 14 Achievement% 11 Wizard Run 0 Options --------- ASCII 0 Keyboard 0 Movement Numpad Keybinds 0 Fullscreen 1 Font 18/SmallcapsGlow Map View 76x50 Tactical HUD 1 Map Filters NONE Filters NONE Steam 1 RUN: 92822469-2f4f-4b7d-81f9-93db7df0f307